Workbook

Sheet 48.全市一般收入
A1: 2023年攀枝花市一般公共预算收入执行情况表
E2: 单位：万元，%
A3: 科目 | B3: 年初预算数 | C3: 调整预算数 | D3: 执行数 | E3: 为调整预算 | F3: 为上年决算
A4: 一、税收收入 | B4: 563,550 | C4: 554,700 | D4: 548,682 | E4: =D4/C4*100 -> 98.9 | F4: 107.6
A5: 增值税 | B5: 251,626 | C5: 241,560 | D5: 236,995 | E5: =D5/C5*100 -> 98.1 | F5: 120.1
A6: 消费税
A7: 企业所得税 | B7: 74,710 | C7: 78,000 | D7: 77,939 | E7: =D7/C7*100 -> 99.9 | F7: 108.6
A8: 个人所得税 | B8: 17,027 | C8: 12,700 | D8: 12,735 | E8: 100.3 | F8: 84.2
A9: 资源税 | B9: 45,128 | C9: 42,800 | D9: 42,666 | E9: 99.7 | F9: 103.3
A10: 城市维护建设税 | B10: 33,154 | C10: 33,200 | D10: 32,166 | E10: 96.9 | F10: 94.7
A11: 房产税 | B11: 21,495 | C11: 22,000 | D11: 21,932 | E11: 99.7 | F11: 99.3
A12: 印花税 | B12: 15,832 | C12: 15,800 | D12: 15,644 | E12: 99.0 | F12: 108.4
A13: 城镇土地使用税 | B13: 34,969 | C13: 36,800 | D13: 36,780 | E13: 99.9 | F13: 96.9
A14: 土地增值税 | B14: 9,423 | C14: 7,800 | D14: 7,841 | E14: 100.5 | F14: 84.1
A15: 车船税 | B15: 7,879 | C15: 8,000 | D15: 8,034 | E15: 100.4 | F15: 100.5
A16: 耕地占用税 | B16: 14,740 | C16: 20,230 | D16: 20,230 | E16: 100.0 | F16: 111.6
A17: 契税 | B17: 26,742 | C17: 24,500 | D17: 24,457 | E17: 99.8 | F17: 82.2
A18: 烟叶税 | B18: 6,465 | C18: 7,800 | D18: 7,772 | E18: 99.6 | F18: 116.5
A19: 环境保护税 | B19: 4,345 | C19: 3,400 | D19: 3,380 | E19: 99.4 | F19: 84.5
A20: 其他税收收入 | B20: 15 | C20: 110 | D20: 111 | E20: 100.9 | F20: 179.0
A21: 二、非税收入 | B21: 437,850 | C21: 454,560 | D21: 463,609 | E21: 102.0 | F21: 140.6
A22: 专项收入 | B22: 38,200 | C22: 31,000 | D22: 31,946 | E22: =D22/C22*100 -> 103.1 | F22: 100.5
A23: 行政事业性收费收入 | B23: 20,240 | C23: 17,340 | D23: 17,600 | E23: 101.5 | F23: 86.7
A24: 罚没收入 | B24: 29,050 | C24: 30,600 | D24: 30,632 | E24: 100.1 | F24: 80.2
A25: 国有资本经营收入 | C25: 2,000 | D25: 2,000
A26: 国有资源（资产）有偿使用收入 | B26: 307,650 | C26: 349,820 | D26: 357,566 | E26: =D26/C26*100 -> 102.2 | F26: 187.8
A27: 捐赠收入 | B27: 60
A28: 政府住房基金收入 | B28: 12,800 | C28: 9,400 | D28: 9,454 | E28: =D28/C28*100 -> 100.6 | F28: 70.8
A29: 其他收入 | B29: 29,850 | C29: 14,400 | D29: 14,411 | E29: =D29/C29*100 -> 100.1 | F29: 40.4
A30: 收 入 合 计 | B30: 1,001,400 | C30: 1,009,260 | D30: 1,012,291 | E30: =D30/C30*100 -> 100.3 | F30: 120.5

Sheet 49.全市一般支出
A1: 2023年攀枝花市一般公共预算支出执行情况表
D2: 单位：万元，% | E2: 单位：万元，%
A3: 科目 | B3: 年初预算数 | C3: 调整预算数 | D3: 执行数 | E3: 为调整预算 | F3: 为上年决算
A4: 一、一般公共服务支出 | B4: 187,792 | C4: 186,541 | D4: 184,231 | E4: =D4/C4*100 -> 98.8 | F4: 103.9
A5: 二、外交支出
A6: 三、国防支出 | B6: 600 | C6: 2,754 | D6: 2,621 | E6: =D6/C6*100 -> 95.2 | F6: 359.5
A7: 四、公共安全支出 | B7: 102,637 | C7: 106,991 | D7: 101,422 | E7: 94.8 | F7: 107.4
A8: 五、教育支出 | B8: 256,874 | C8: 262,141 | D8: 259,902 | E8: 99.1 | F8: 100.6
A9: 六、科学技术支出 | B9: 6,556 | C9: 8,350 | D9: 8,296 | E9: 99.4 | F9: 141.1
A10: 七、文化旅游体育与传媒支出 | B10: 23,578 | C10: 31,454 | D10: 26,819 | E10: 85.3 | F10: 129.6
A11: 八、社会保障和就业支出 | B11: 215,465 | C11: 291,474 | D11: 277,155 | E11: 95.1 | F11: 141.0
A12: 九、卫生健康支出 | B12: 147,744 | C12: 169,854 | D12: 165,117 | E12: 97.2 | F12: 105.7
A13: 十、节能环保支出 | B13: 25,514 | C13: 29,410 | D13: 27,921 | E13: 94.9 | F13: 140.5
A14: 十一、城乡社区支出 | B14: 73,261 | C14: 168,142 | D14: 155,794 | E14: 92.7 | F14: 122.5
A15: 十二、农林水支出 | B15: 189,741 | C15: 213,600 | D15: 196,549 | E15: 92.0 | F15: 108.3
A16: 十三、交通运输支出 | B16: 58,743 | C16: 64,142 | D16: 61,717 | E16: 96.2 | F16: 95.7
A17: 十四、资源勘探工业信息等支出 | B17: 8,247 | C17: 16,475 | D17: 15,809 | E17: 96.0 | F17: 165.0
A18: 十五、商业服务业等支出 | B18: 3,954 | C18: 10,214 | D18: 9,088 | E18: 89.0 | F18: 329.4
A19: 十六、金融支出 | B19: 1,984 | C19: 1,542 | D19: 1,404 | E19: 91.1 | F19: 65.2
A20: 十七、自然资源海洋气象等支出 | B20: 15,874 | C20: 19,541 | D20: 18,308 | E20: 93.7 | F20: 219.1
A21: 十八、住房保障支出 | B21: 74,641 | C21: =6874+129745 -> 136,619 | D21: 124,562 | E21: 91.2 | F21: 170.1
A22: 十九、粮油物资储备支出 | B22: 1,254 | C22: 1,641 | D22: 1,532 | E22: 93.4 | F22: 203.5
A23: 二十、灾害防治及应急管理支出 | B23: 18,200 | C23: 25,478 | D23: 24,548 | E23: 96.3 | F23: 146.6
A24: 二十一、预备费 | B24: 15,877
A25: 二十二、其他支出 | B25: 894 | C25: 17,200 | D25: 17,011 | E25: 98.9 | F25: 1,365.2
A26: 二十三、债务付息支出 | B26: 59,712 | C26: 52,100 | D26: 51,343 | E26: 98.5 | F26: 96.8
A27: 二十四、债务发行费用支出 | B27: 132 | C27: 185 | D27: 183 | E27: 98.9 | F27: 83.6
A28: 支 出 合 计 | B28: 1,489,274 | C28: =SUM(C4:C27) -> 1,815,848 | D28: 1,731,332 | E28: 95.3 | F28: 117.7

Sheet 50.全市一般平衡
A1: 2023年攀枝花市一般公共预算收支平衡表
A2: 单位：万元
A3: 科目 | B3: 执行数 | C3: 科目 | D3: 执行数
A4: 一般公共预算收入 | B4: 1,012,291 | C4: 一般公共预算支出 | D4: 1,731,332
A5: 上级补助收入 | B5: =B6+B7+B8 -> 871,806 | C5: 补助下级支出
A6: 返还性收入 | B6: 28,611 | C6: 返还性支出
A7: 一般性转移支付收入 | B7: 710,769 | C7: 一般性转移支付支出
A8: 专项转移支付收入 | B8: 132,426 | C8: 专项转移支付支出
A9: 下级上解收入 | C9: 上解上级支出 | D9: =D10+D11 -> 111,225
A10: 体制上解收入 | C10: 体制上解支出 | D10: 11
A11: 专项上解收入 | C11: 专项上解支出 | D11: 111,214
A12: 上年结余 | B12: 281,760
A13: 调入资金 | B13: =B14+B15 -> 2,870 | C13: 调出资金
A14: 从政府性基金预算调入
A15: 从国有资本经营预算调入 | B15: 2,870
A16: 从其他资金调入
A17: 债务收入 | C17: 债务还本支出 | D17: =D18+D19+D20+D21 -> 211,692
A18: 地方政府一般债券收入 | C18: 地方政府一般债券还本支出 | D18: 198,749
A19: 地方政府向外国政府借款收入 | C19: 地方政府向外国政府借款还本支出
A20: 地方政府向国际组织借款收入 | C20: 地方政府向国际组织借款还本支出 | D20: 4,043
A21: 地方政府其他一般债务收入 | C21: 地方政府其他一般债务还本支出 | D21: 8,900
A22: 债务转贷收入 | B22: 230,791 | C22: 债务转贷支出
A23: 动用预算稳定调节基金 | B23: 18,871 | C23: 安排预算稳定调节基金 | D23: 26,273
A24: 接受其他地区援助收入 | C24: 援助其他地区支出 | D24: 4,200
C25: 年终结余 | D25: =B26-D4-D9-D13-D17-D22-D23-D24 -> 333,667
A26: 收 入 总 计 | B26: =B4+B5+B9+B12+B13+B17+B22+B23+B24 -> 2,418,389 | C26: 支 出 总 计 | D26: =D4+D9+D17+D13+D22+D23+D24+D25 -> 2,418,389

Sheet 51.全市经济分类支出
A1: 2023年攀枝花市一般公共预算经济分类科目支出执行情况表
E2: 单位：万元，%
A3: 科目 | B3: 年初预算数 | C3: 调整预算数 | D3: 执行数 | E3: 为调整预算 | F3: 为上年决算
A4: 机关工资福利支出 | B4: =SUM(B5:B8) -> 325,991 | C4: =SUM(C5:C8) -> 275,757 | D4: =SUM(D5:D8) -> 271,162 | E4: 98.3 | F4: 92.0
A5: 工资奖金津补贴 | B5: 224,574 | C5: 172,145 | D5: 169,498 | E5: 98.5 | F5: 78.6
A6: 社会保障缴费 | B6: 46,758 | C6: 52,146 | D6: 51,408 | E6: 98.6 | F6: 142.3
A7: 住房公积金 | B7: 24,512 | C7: 21,041 | D7: 20,437 | E7: 97.1 | F7: 110.1
A8: 其他工资福利支出 | B8: 30,147 | C8: 30,425 | D8: 29,819 | E8: 98.0 | F8: 122.0
A9: 机关商品和服务支出 | B9: =SUM(B10:B19) -> 303,822 | C9: =SUM(C10:C19) -> 281,701 | D9: =SUM(D10:D19) -> 251,071 | E9: 89.1 | F9: 81.6
A10: 办公经费 | B10: 36,541 | C10: 58,231 | D10: 54,292 | E10: 93.2 | F10: 165.2
A11: 会议费 | B11: 1,200 | C11: 2,331 | D11: 2,231 | E11: 95.7 | F11: 259.7
A12: 培训费 | B12: 650 | C12: 1,312 | D12: 1,265 | E12: 96.4 | F12: 389.2
A13: 专用材料购置费 | B13: 700 | C13: 3,452 | D13: 3,365 | E13: 97.5 | F13: 292.6
A14: 委托业务费 | B14: 19,841 | C14: 76,142 | D14: 68,721 | E14: 90.3 | F14: 301.0
A15: 公务接待费 | B15: 790 | C15: 790 | D15: 572 | E15: 72.4 | F15: 130.9
A16: 因公出国（境）费用
A17: 公务用车运行维护费 | B17: 3,400 | C17: 3,400 | D17: 3,108 | E17: 91.4 | F17: 106.1
A18: 维修（护）费 | B18: 700 | C18: 7,591 | D18: 7,572 | E18: 99.7 | F18: 180.5
A19: 其他商品和服务支出 | B19: 240,000 | C19: 128,452 | D19: 109,945 | E19: 85.6 | F19: 45.4
A20: 机关资本性支出（一） | B20: =SUM(B21:B27) -> 133,360 | C20: =SUM(C21:C27) -> 192,233 | D20: =SUM(D21:D27) -> 178,797 | E20: 93.0 | F20: 110.3
A21: 房屋建筑物购建 | B21: 4,000 | C21: 3,730 | D21: 3,722 | E21: 99.8 | F21: 67.4
A22: 基础设施建设 | B22: 32,500 | C22: 102,114 | D22: 96,463 | E22: 94.5 | F22: 311.8
A23: 公务用车购置 | B23: 242 | C23: 242 | D23: 242 | E23: 100.0 | F23: 56.0
A24: 土地征迁补偿和安置支出 | B24: =-32+4400 -> 4,368 | C24: 34,214 | D24: 29,688 | E24: 86.8 | F24: 280.1
A25: 设备购置 | B25: 1,800 | C25: 8,652 | D25: 8,569 | E25: 99.0
A26: 大型修缮 | B26: 450 | C26: 4,310 | D26: 4,307 | E26: 99.9
A27: 其他资本性支出 | B27: 90,000 | C27: 38,971 | D27: 35,806 | E27: 91.9 | F27: 31.7
A28: 机关资本性支出（二） | B28: =SUM(B29:B34) -> 12,000 | C28: =SUM(C29:C34) -> 33,990 | D28: =SUM(D29:D34) -> 31,697 | E28: 93.3 | F28: 348.4
A29: 房屋建筑物购建 | B29: 1,500 | C29: 1,500 | D29: 1,360 | E29: 90.7 | F29: 118.4
A30: 基础设施建设 | B30: =-170+6000 -> 5,830 | C30: 25,600 | D30: 23,520 | E30: 91.9
A31: 公务用车购置 | B31: 170 | C31: 170 | D31: 170 | E31: 100.0
A32: 设备购置 | C32: 910 | D32: 904 | E32: 99.3
A33: 大型修缮 | C33: 10 | D33: 10 | E33: 100.0
A34: 其他资本性支出 | B34: 4,500 | C34: 5,800 | D34: 5,733 | E34: 98.8 | F34: 152.1
A35: 对事业单位经常性补助 | B35: =SUM(B36:B38) -> 454,321 | C35: =SUM(C36:C38) -> 489,660 | D35: =SUM(D36:D38) -> 477,168 | E35: 97.4 | F35: 114.3
A36: 工资福利支出 | B36: 342,510 | C36: 372,418 | D36: 367,138 | E36: 98.6 | F36: 111.8
A37: 商品和服务支出 | B37: =110504-6193 -> 104,311 | C37: =1814+115326 -> 117,140 | D37: 109,928 | E37: 93.8 | F37: 131.0
A38: 其他对事业单位补助 | B38: 7,500 | C38: 102 | D38: 102 | E38: 100.0
A39: 对事业单位资本性补助 | B39: =SUM(B40:B41) -> 11,000 | C39: =SUM(C40:C41) -> 34,241 | D39: =SUM(D40:D41) -> 30,402 | E39: 88.8 | F39: 373.9
A40: 资本性支出（一） | B40: 4,000 | C40: 27,241 | D40: 24,695 | E40: 90.7 | F40: 349.8
A41: 资本性支出（二） | B41: 7,000 | C41: 7,000 | D41: 5,707 | E41: 81.5 | F41: 533.4
A42: 对企业补助 | B42: =SUM(B43:B45) -> 6,600 | C42: =SUM(C43:C45) -> 126,010 | D42: =SUM(D43:D45) -> 116,973 | E42: 92.8 | F42: 681.0
A43: 费用补贴 | B43: 2,000 | C43: 10,500 | D43: 10,483 | E43: 99.8 | F43: 179.0
A44: 利息补贴 | B44: 1,500 | C44: 2,510 | D44: 2,504 | E44: 99.8 | F44: 145.8
A45: 其他对企业补助 | B45: 3,100 | C45: 113,000 | D45: 103,986 | E45: 92.0 | F45: 1,082.8
A46: 对企业资本性支出 | B46: =SUM(B47:B50) -> 12,000 | C46: =SUM(C47:C50) -> 30,600 | D46: =SUM(D47:D50) -> 29,545 | E46: 96.6 | F46: 242.2
A47: 对企业资本性支出（一） | C47: 18,600 | D47: 18,503 | E47: 99.5
A48: 对企业资本性支出（二） | B48: 12,000 | C48: 10,000 | D48: 10,000 | E48: 100.0 | F48: 100.0
A49: 政府投资基金股权投资
A50: 其他对企业资本性支出 | C50: 2,000 | D50: 1,042 | E50: 52.1 | F50: 47.4
A51: 对个人和家庭的补助 | B51: =SUM(B52:B56) -> 111,423 | C51: =SUM(C52:C56) -> 174,600 | D51: =SUM(D52:D56) -> 174,274 | E51: 99.8 | F51: 145.4
A52: 社会福利和救助 | B52: 34,574 | C52: 114,000 | D52: 113,910 | E52: 99.9 | F52: 226.7
A53: 助学金 | B53: 4,500 | C53: 11,100 | D53: 11,059 | E53: 99.6 | F53: 225.2
A54: 个人农业生产补贴 | B54: 3,900 | C54: 12,100 | D54: 12,064 | E54: 99.7 | F54: 301.1
A55: 离退休费 | B55: 32,471 | C55: 3,700 | D55: 3,634 | E55: 98.2
A56: 其他对个人和家庭补助 | B56: 35,978 | C56: 33,700 | D56: 33,607 | E56: 99.7 | F56: 112.3
A57: 对社会保障基金补助 | B57: =SUM(B58:B60) -> 42,142 | C57: =SUM(C58:C60) -> 57,130 | D57: =SUM(D58:D60) -> 57,037 | E57: 99.8 | F57: 115.8
A58: 对社会保险基金补助 | B58: 42,142 | C58: 56,800 | D58: 56,711 | E58: 99.8 | F58: 115.2
A59: 补充全国社会保障基金
A60: 对机关事业单位职业年金的补助 | C60: 330 | D60: 326 | E60: 98.8
A61: 债务利息及费用支出 | B61: =SUM(B62:B65) -> 59,844 | C61: =SUM(C62:C65) -> 52,285 | D61: =SUM(D62:D65) -> 51,527 | E61: 98.6 | F61: 96.8
A62: 国内债务付息 | B62: 48,712 | C62: 51,000 | D62: 50,358 | E62: 98.7 | F62: 95.9
A63: 国外债务付息 | B63: 11,000 | C63: 1,100 | D63: 986 | E63: 89.6 | F63: 196.8
A64: 国内债务发行费用 | B64: 132 | C64: 185 | D64: 183 | E64: 98.9 | F64: 83.6
A65: 国外债务发行费用
A66: 其他支出 | B66: =SUM(B67:B71) -> 16,771 | C66: 67,641 | D66: 61,679 | E66: 91.2 | F66: 304.4
A67: 国家赔偿费用支出
A68: 对民间非营利组织和群众性自治组织补贴 | C68: 320 | D68: 320 | E68: 100.0
A69: 经常性赠与
A70: 资本性赠与
A71: 其他支出 | B71: 16,771 | C71: 67,321 | D71: 61,359 | E71: 91.1 | F71: 302.9
A72: 支 出 合 计 | B72: =B66+B61+B51+B46+B42+B39+B35+B28+B20+B9+B4+B57 -> 1,489,274 | C72: =C66+C61+C51+C46+C42+C39+C35+C28+C20+C9+C4+C57 -> 1,815,848 | D72: =D66+D61+D51+D46+D42+D39+D35+D28+D20+D9+D4+D57 -> 1,731,332 | E72: 95.3 | F72: 117.7

Sheet 52.全市经济分类（基本）支出
A1: 2023年攀枝花市一般公共预算经济分类科目（基本）支出执行情况表
E2: 单位：万元，%
A3: 科目 | B3: 年初预算数 | C3: 调整预算数 | D3: 执行数 | E3: 为调整预算 | F3: 为上年决算
A4: 机关工资福利支出 | B4: =SUM(B5:B8) -> 289,649 | C4: =SUM(C5:C8) -> 261,400 | D4: =SUM(D5:D8) -> 260,732 | E4: 99.7 | F4: 90.3
A5: 工资奖金津补贴 | B5: 195,411 | C5: 164,000 | D5: 163,600 | E5: 99.8 | F5: 77.2
A6: 社会保障缴费 | B6: 40,587 | C6: 48,500 | D6: 48,417 | E6: 99.8 | F6: 135.9
A7: 住房公积金 | B7: 24,110 | C7: 20,500 | D7: 20,374 | E7: 99.4 | F7: 111.9
A8: 其他工资福利支出 | B8: 29,541 | C8: 28,400 | D8: 28,341 | E8: 99.8 | F8: 123.7
A9: 机关商品和服务支出 | B9: =SUM(B10:B19) -> 74,992 | C9: =SUM(C10:C19) -> 35,507 | D9: 34,097 | E9: 96.0 | F9: 103.6
A10: 办公经费 | B10: 34,251 | C10: 27,532 | D10: 26,309 | E10: 95.6 | F10: 103.9
A11: 会议费 | B11: 195 | C11: 130 | D11: 129 | E11: 99.2 | F11: 94.2
A12: 培训费 | B12: 100 | C12: 105 | D12: 103 | E12: 98.1 | F12: 109.6
A13: 专用材料购置费 | C13: 150 | D13: 146 | E13: 97.3 | F13: 540.7
A14: 委托业务费 | B14: 1,500 | C14: 1,800 | D14: 1,748 | E14: 97.1 | F14: 117.4
A15: 公务接待费 | B15: 650 | C15: 380 | D15: 353 | E15: 92.9 | F15: 96.7
A16: 因公出国（境）费用
A17: 公务用车运行维护费 | B17: 2,405 | C17: 2,842 | D17: 2,842 | E17: 100.0 | F17: 110.8
A18: 维修（护）费 | B18: 150 | C18: 300 | D18: 259 | E18: 86.3 | F18: 119.9
A19: 其他商品和服务支出 | B19: 35,741 | C19: 2,268 | D19: 2,208 | E19: 97.4 | F19: 81.6
A20: 机关资本性支出（一） | C20: =SUM(C21:C27) -> 34 | D20: 34 | E20: 100.0
A21: 房屋建筑物购建
A22: 基础设施建设
A23: 公务用车购置
A24: 土地征迁补偿和安置支出
A25: 设备购置 | C25: 34 | D25: 34 | E25: 100.0
A26: 大型修缮
A27: 其他资本性支出
A28: 机关资本性支出（二） | C28: =SUM(C29:C34) -> 2 | D28: 2 | E28: 100.0
A29: 房屋建筑物购建
A30: 基础设施建设
A31: 公务用车购置
A32: 设备购置 | C32: 2 | D32: 2 | E32: 100.0
A33: 大型修缮
A34: 其他资本性支出
A35: 对事业单位经常性补助 | B35: =SUM(B36:B38) -> 345,140 | C35: =SUM(C36:C38) -> 381,000 | D35: 379,971 | E35: 99.7 | F35: 118.0
A36: 工资福利支出 | B36: 307,540 | C36: 365,000 | D36: 364,200 | E36: 99.8 | F36: 117.8
A37: 商品和服务支出 | B37: 32,100 | C37: 16,000 | D37: 15,771 | E37: 98.6 | F37: 122.3
A38: 其他对事业单位补助 | B38: 5,500
A39: 对事业单位资本性补助 | C39: =SUM(C40:C41) -> 103 | D39: 103 | E39: 100.0
A40: 资本性支出（一） | C40: 101 | D40: 101 | E40: 100.0
A41: 资本性支出（二） | C41: 2 | D41: 2 | E41: 100.0
A42: 对企业补助
A43: 对企业资本性支出
A44: 对个人和家庭的补助 | B44: =SUM(B45:B49) -> 52,980 | C44: =SUM(C45:C49) -> 61,321 | D44: 60,985 | E44: 99.5 | F44: 138.8
A45: 社会福利和救助 | B45: 15,080 | C45: 52,000 | D45: 51,708 | E45: 99.4 | F45: 416.0
A46: 助学金 | B46: 4,400 | C46: 1 | D46: 1 | E46: 100.0 | F46: 50.0
A47: 个人农业生产补贴
A48: 离退休费 | B48: 28,500 | C48: 3,500 | D48: 3,462 | E48: 98.9
A49: 其他对个人和家庭补助 | B49: 5,000 | C49: 5,820 | D49: 5,814 | E49: 99.9 | F49: 115.0
A50: 对社会保障基金补助
A51: 债务利息及费用支出
A52: 其他支出
A53: 支 出 合 计 | B53: =B52+B51+B44+B43+B42+B39+B35+B28+B20+B9+B4+B50 -> 762,761 | C53: =C52+C51+C44+C43+C42+C39+C35+C28+C20+C9+C4+C50 -> 739,367 | D53: 735,924 | E53: 99.5 | F53: 107.0

Sheet 53.省对市一般补助
A1: 2023年省对攀枝花市税返和转移支付补助情况表
B2: 单位：万元
A3: 科 目 | B3: 执行数
A4: 上级补助收入 | B4: =B5+B12+B37 -> 871,806
A5: 返还性收入 | B5: 28,611
A6: 所得税基数返还收入 | B6: 9,437
A7: 成品油税费改革税收返还收入 | B7: 21,087
A8: 增值税税收返还收入 | B8: 38,251
A9: 消费税税收返还收入 | B9: 966
A10: 增值税“五五分享”税收返还收入 | B10: -28,149
A11: 其他返还性收入 | B11: -12,981
A12: 一般性转移支付收入 | B12: =SUM(B13:B36) -> 710,769
A13: 均衡性转移支付收入 | B13: 223,614
A14: 县级基本财力保障机制奖补资金收入 | B14: 22,015
A15: 结算补助收入 | B15: 43,475
A16: 资源枯竭型城市转移支付补助收入 | B16: 7,577
A17: 企业事业单位划转补助收入 | B17: 22,411
A18: 产粮(油)大县奖励资金收入
A19: 重点生态功能区转移支付收入 | B19: 9,961
A20: 固定数额补助收入 | B20: =-22411+75586 -> 53,175
A21: 巩固脱贫攻坚成果衔接乡村振兴转移支付收入 | B21: 17,702
A22: 公共安全共同财政事权转移支付收入 | B22: 11,536
A23: 教育共同财政事权转移支付收入 | B23: 48,833
A24: 科学技术共同财政事权转移支付收入 | B24: 683
A25: 文化旅游体育与传媒共同财政事权转移支付收入 | B25: 2,831
A26: 社会保障和就业共同财政事权转移支付收入 | B26: 38,696
A27: 医疗卫生共同财政事权转移支付收入 | B27: 64,499
A28: 节能环保共同财政事权转移支付收入 | B28: 3,732
A29: 农林水共同财政事权转移支付收入 | B29: 61,820
A30: 交通运输共同财政事权转移支付收入 | B30: 21,435
A31: 住房保障共同财政事权转移支付收入 | B31: 8,226
A32: 灾害防治及应急管理共同财政事权转移支付收入 | B32: 3,116
A33: 增值税留抵退税转移支付收入 | B33: 36,500
A34: 其他退税减税降费转移支付收入 | B34: 4,151
A35: 补充县区财力转移支付收入
A36: 其他一般性转移支付收入 | B36: 4,781
A37: 专项转移支付收入 | B37: =SUM(B38:B56) -> 132,426
A38: 一般公共服务 | B38: 1,981
A39: 国防 | B39: 518
A40: 公共安全 | B40: 232
A41: 科学技术 | B41: 9,430
A42: 文化旅游体育与传媒 | B42: 2,643
A43: 社会保障和就业 | B43: 204
A44: 卫生健康 | B44: 5,342
A45: 节能环保 | B45: 16,877
A46: 城乡社区 | B46: 7,694
A47: 农林水 | B47: 13,815
A48: 交通运输 | B48: 3,244
A49: 资源勘探工业信息等 | B49: 8,945
A50: 商业服务业等 | B50: 2,693
A51: 金融 | B51: 2,620
A52: 自然资源海洋气象等 | B52: 125
A53: 住房保障 | B53: 43,652
A54: 粮油物资储备 | B54: 88
A55: 灾害防治及应急管理 | B55: 7,036
A56: 其他收入 | B56: 5,287

Sheet 54.全市基金收入
A1: 2023年攀枝花市政府性基金预算收入执行情况表
E2: 单位：万元，%
A3: 科 目 | B3: 年初预算数 | C3: 调整预算数 | D3: 执行数 | E3: 为调整预算 | F3: 为上年决算
A4: 国有土地收益基金收入 | B4: 14,590 | C4: 5,450 | D4: 5,475 | E4: =D4/C4*100 -> 100.5 | F4: 50.3
A5: 农业土地开发资金收入 | B5: 2,105 | C5: 840 | D5: 841 | E5: =D5/C5*100 -> 100.1 | F5: 66.9
A6: 国有土地使用权出让收入 | B6: 350,955 | C6: 197,000 | D6: 197,181 | E6: 100.1 | F6: 65.1
A7: 城市基础设施配套费收入 | B7: 8,050 | C7: 7,163 | D7: 7,163 | E7: 100.0 | F7: 39.6
A8: 污水处理费收入 | B8: 5,500 | C8: 8,853 | D8: 8,853 | E8: 100.0 | F8: 90.8
A9: 专项债务对应项目专项收入 | C9: 25,731 | D9: 25,731 | E9: 100.0 | F9: 146.6
A10: 收 入 合 计 | B10: =SUM(B4:B9) -> 381,200 | C10: =SUM(C4:C9) -> 245,037 | D10: =SUM(D4:D9) -> 245,244 | E10: 100.1 | F10: 68.0

Sheet 55.全市基金支出
A1: 2023年攀枝花市政府性基金预算支出执行情况表
E2: 单位：万元，%
A3: 科 目 | B3: 年初预算数 | C3: 调整预算数 | D3: 执行数 | E3: 为调整预算 | F3: 为上年决算
A4: 科学技术支出 | B4: 0 | C4: 0 | D4: 0
A5: 文化旅游体育与传媒支出 | C5: 185 | D5: 183 | E5: =D5/C5*100 -> 98.9 | F5: 139.7
A6: 社会保障和就业支出 | B6: 2,793 | C6: 4,950 | D6: 4,913 | E6: =D6/C6*100 -> 99.3 | F6: 153.6
A7: 节能环保支出
A8: 城乡社区支出 | B8: 278,809 | C8: =11775+215415 -> 227,190 | D8: 204,019 | E8: 89.8 | F8: 75.0
A9: 农林水支出 | B9: 90 | C9: 9,000 | D9: 8,901 | E9: 98.9 | F9: 1,062.2
A10: 交通运输支出
A11: 资源勘探工业信息等支出
A12: 金融支出
A13: 其他支出 | B13: 226 | C13: 198,254 | D13: 191,127 | E13: 96.4 | F13: 101.7
A14: 债务付息支出 | B14: 28,160 | C14: 34,300 | D14: 33,196 | E14: 96.8 | F14: 108.2
A15: 债务发行费用支出 | B15: 74 | C15: 240 | D15: 238 | E15: 99.2 | F15: 146.0
A16: 抗疫特别国债安排的支出
A17: 支 出 合 计 | B17: =SUM(B4:B16) -> 310,152 | C17: =SUM(C4:C16) -> 474,119 | D17: =SUM(D4:D16) -> 442,577 | E17: 93.3 | F17: 89.4

Sheet 56.全市基金平衡
A1: 2023年攀枝花市政府性基金预算收支平衡表
A2: 单位：万元
A3: 科 目 | B3: 执行数 | C3: 科 目 | D3: 执行数
A4: 政府性基金预算收入 | B4: 245,244 | C4: 政府性基金预算支出 | D4: 442,577
A5: 上级补助收入 | B5: 17,702 | C5: 补助下级支出
A6: 下级上解收入 | C6: 上解上级支出
A7: 上年结余 | B7: 43,560
A8: 调入资金 | C8: 调出资金
A9: 债务收入 | C9: 债务还本支出 | D9: =11100+113825 -> 124,925
A10: 债务转贷收入 | B10: 301,036 | C10: 债务转贷支出
C11: 年终结余 | D11: =B12-D4-D5-D6-D7-D8-D9-D10 -> 40,040
A12: 收 入 总 计 | B12: =B4+B5+B6+B7+B8+B9+B10 -> 607,542 | C12: 支 出 总 计 | D12: =D4+D5+D6+D8+D11+D9+D10 -> 607,542

Sheet 57.省对市基金补助
A1: 2023年省对攀枝花市政府性基金预算转移支付补助情况表
B2: 单位：万元
A3: 科 目 | B3: 执行数
A4: 转移支付补助 | B4: =B5+B6+B7 -> 17,702
A5: 国家电影事业发展专项资金 | B5: 15
A6: 水库移民扶持基金 | B6: =1792+9939 -> 11,731
A7: 彩票公益金 | B7: 5,956

Sheet 58.全市国资收入
A1: 2023年攀枝花市国有资本经营预算收入执行情况表
E2: 单位：万元，%
A3: 科 目 | B3: 年初预算数 | C3: 调整预算数 | D3: 执行数 | E3: 为调整预算 | F3: 为上年决算
A4: 利润收入 | B4: =B5+B6 -> 7,300 | C4: =C5+C6 -> 5,630 | D4: =D5+D6 -> 5,630 | E4: =D4/C4*100 -> 100.0 | F4: 127.1
A5: 投资服务企业利润收入 | B5: 7,300 | C5: 5,630 | D5: 5,630 | E5: =D5/C5*100 -> 100.0 | F5: 127.1
A6: 其他企业利润收入
A7: 股利、股息收入
A8: 产权转让收入
A9: 清算收入
A10: 其他国有资本经营预算收入
A11: 收 入 合 计 | B11: =B4+B7+B8+B9+B10 -> 7,300 | C11: =C4+C7+C8+C9+C10 -> 5,630 | D11: =D4+D7+D8+D9+D10 -> 5,630 | E11: =D11/C11*100 -> 100.0 | F11: 122.1

Sheet 59.全市国资支出
A1: 2023年攀枝花市国有资本经营预算支出执行情况表
E2: 单位：万元，%
A3: 科 目 | B3: 年初预算数 | C3: 调整预算数 | D3: 执行数 | E3: 为调整预算 | F3: 为上年决算
A4: 社会保障和就业支出
A5: 国有资本经营预算支出 | B5: =B6+B17+B26+B27 -> 2,258 | C5: =C6+C17+C26+C27 -> 5,142 | D5: =D6+D9+D17+D26+D27 -> 5,142 | E5: =D5/C5*100 -> 100.0 | F5: 85.8
A6: 解决历史遗留问题及改革成本支出 | B6: =SUM(B7:B16) -> 2,258 | C6: =SUM(C7:C16) -> 4,342 | D6: =SUM(D7:D16) -> 4,342 | E6: =D6/C6*100 -> 100.0 | F6: 72.5
A7: 厂办大集体改革支出
A8: “三供一业”移交补助支出 | B8: 298 | C8: 164 | D8: 164 | E8: 100.0
A9: 国有企业办职教幼教补助支出
A10: 国有企业办公共服务机构移交补助支出 | C10: 201 | D10: 201 | E10: 100.0
A11: 国有企业退休人员社会化管理补助支出 | C11: 2,017 | D11: 2,017 | E11: 100.0 | F11: 47.8
A12: 国有企业棚户区改造支出
A13: 国有企业改革成本支出 | B13: 1,960 | C13: 1,960 | D13: 1,960 | E13: 100.0 | F13: 112.0
A14: 离休干部医药费补助支出
A15: 金融企业改革性支出
A16: 其他解决历史遗留问题及改革成本支出
A17: 国有企业资本金注入 | C17: =SUM(C18:C25) -> 800 | D17: =SUM(D18:D25) -> 800 | E17: =D17/C17*100 -> 100.0
A18: 国有经济结构调整支出
A19: 公益性设施投资支出
A20: 前瞻性战略性产业发展支出
A21: 生态环境保护支出
A22: 支持科技进步支出
A23: 保障国家经济安全支出
A24: 金融企业资本性支出
A25: 其他国有企业资本金注入 | C25: 800 | D25: 800 | E25: =D25/C25*100 -> 100.0
A26: 国有企业政策性补贴
A27: 其他国有资本经营预算支出
A28: 支 出 合 计 | B28: =B4+B5 -> 2,258 | C28: =C4+C5 -> 5,142 | D28: =D4+D5 -> 5,142 | E28: =D28/C28*100 -> 100.0 | F28: 85.8

Sheet 60.全市国资平衡
A1: 2023年攀枝花市国有资本经营预算收支平衡表
C2: 单位：万元
A3: 科 目 | B3: 执行数 | C3: 科 目 | D3: 执行数
A4: 国有资本经营预算收入 | B4: 5,630 | C4: 国有资本经营预算支出 | D4: 5,142
A5: 上级补助收入 | B5: 3,445 | C5: 补助下级支出
A6: 下级上解收入 | C6: 上解上级支出
A7: 上年结余 | B7: 3,849
C8: 调出资金 | D8: 2,870
C9: 年终结余 | D9: =B10-D4-D8 -> 4,912
A10: 收 入 总 计 | B10: =B4+B5+B6+B7 -> 12,924 | C10: 支 出 总 计 | D10: =D4+D5+D6+D8+D9 -> 12,924

Sheet 61.全市社保收入
A1: 2023年攀枝花市社会保险基金预算收入执行情况表
E2: 单位：万元，%
A3: 科 目 | B3: 年初预算数 | C3: 调整预算数 | D3: 执行数 | E3: 为调整预算 | F3: 为上年决算
A4: 城乡居民基本养老保险基金收入 | B4: 19,386 | C4: 26,958 | D4: 27,213 | E4: =D4/C4*100 -> 100.9 | F4: 132.3
A5: 职工基本医疗保险（含生育保险）基金收入 | B5: 247,014 | C5: 240,706 | D5: 245,775 | E5: =D5/C5*100 -> 102.1 | F5: 102.6
A6: 城乡居民基本医疗保险基金收入 | B6: 69,760 | C6: 69,876 | D6: 70,325 | E6: =D6/C6*100 -> 100.6 | F6: 105.1
A7: 收 入 合 计 | B7: =B4+B5+B6 -> 336,160 | C7: =C4+C5+C6 -> 337,540 | D7: 343,313 | E7: =D7/C7*100 -> 101.7 | F7: 105.0
A8: 说明：企业职工养老保险、机关事业单位养老保险、工伤保险、失业保险由省级统筹，城镇职工基本医疗保险、职工基本医疗保险（含生育保险）、城乡居民基本医疗保险由市级统筹。

Sheet 62.全市社保支出
A1: 2023年攀枝花市社会保险基金预算支出执行情况表
E2: 单位：万元，%
A3: 科 目 | B3: 年初预算数 | C3: 调整预算数 | D3: 执行数 | E3: 为调整预算 | F3: 为上年决算
A4: 城乡居民基本养老保险基金支出 | B4: 12,813 | C4: 15,673 | D4: 15,542 | E4: =D4/C4*100 -> 99.2 | F4: 128.2
A5: 职工基本医疗保险（含生育保险）基金支出 | B5: 229,803 | C5: 207,611 | D5: 207,319 | E5: =D5/C5*100 -> 99.9 | F5: 102.9
A6: 城乡居民基本医疗保险基金支出 | B6: 66,586 | C6: 66,090 | D6: 64,970 | E6: =D6/C6*100 -> 98.3 | F6: 105.0
A7: 支 出 合 计 | B7: =B4+B5+B6 -> 309,202 | C7: =C4+C5+C6 -> 289,374 | D7: 287,831 | E7: =D7/C7*100 -> 99.5 | F7: 104.5
A8: 说明：企业职工养老保险、机关事业单位养老保险、工伤保险、失业保险由省级统筹，城镇职工基本医疗保险、职工基本医疗保险（含生育保险）、城乡居民基本医疗保险由市级统筹。

Sheet 63.全市社保平衡
A1: 2023年攀枝花市社会保险基金预算收支平衡表
C2: 单位：万元
A3: 科目 | B3: 执行数 | C3: 科目 | D3: 执行数
A4: 社会保险基金预算收入 | B4: 343,313 | C4: 社会保险基金预算支出 | D4: 287,831
A5: 城乡居民基本养老保险基金收入 | B5: 27,213 | C5: 城乡居民基本养老保险基金支出 | D5: 15,542
A6: 职工基本医疗保险（含生育保险）基金收入 | B6: 245,775 | C6: 职工基本医疗保险（含生育保险）基金支出 | D6: 207,319
A7: 城乡居民基本医疗保险基金收入 | B7: 70,325 | C7: 城乡居民基本医疗保险基金支出 | D7: 64,970
A8: 上年滚存结余 | B8: 304,042 | C8: 年终滚存结余 | D8: 359,524
A9: 收 入 总 计 | B9: =B4+B8 -> 647,355 | C9: 支 出 总 计 | D9: =D4+D8 -> 647,355
A10: 说明：企业职工养老保险、机关事业单位养老保险、工伤保险、失业保险由省级统筹，城镇职工基本医疗保险、职工基本医疗保险（含生育保险）、城乡居民基本医疗保险由市级统筹。

Sheet 64.全市政府性债务余额
A1: 2023年攀枝花市政府性债务余额情况表
E2: 单位：万元
A3: 项目 | B3: 政府债务 | F3: 或有债务
B4: 合计 | C4: 一般债券 | D4: 专项债券 | E4: 非债券 形式债务
A5: 一、2022年末余额 | B5: =SUM(C5:E5) -> 2,386,364 | C5: 1,417,623 | D5: 944,375 | E5: 24,366 | F5: 139,659
A6: 二、2023年新增额 | B6: =SUM(C6:E6) -> 531,827 | C6: 230,791 | D6: 301,036
A7: 三、2023年或有债务转化额
A8: 四、2023年偿还额 | B8: =SUM(C8:E8) -> 316,784 | C8: 198,749 | D8: 113,825 | E8: 4,210 | F8: 453
A9: 五、2023年末余额 | B9: =B5+B6-B8 -> 2,601,407 | C9: =C5+C6-C8 -> 1,449,665 | D9: 1,131,586 | E9: 20,156 | F9: 139,206
A10: 说明：本表反映的举借额和偿还额均包括再融资债券（含特殊再融资债券）。

Sheet 65.全市政府债务发行及还本付息
A1: 2023年攀枝花市政府债务发行及还本付息情况表
B2: 单位：亿元
A3: 项目 | B3: 金额
A4: 一、2022年末地方政府债务余额 | B4: =B5+B6 -> 238.64
A5: 其中：一般债务 | B5: 144.20
A6: 专项债务 | B6: 94.44
A7: 二、2022年地方政府债务限额 | B7: =SUM(B8:B9) -> 255.41
A8: 其中：一般债务 | B8: 157.09
A9: 专项债务 | B9: 98.32
A10: 三、2023年地方政府债务发行数 | B10: =SUM(B11:B14) -> 53.18
A11: 新增一般债券发行额 | B11: 2.33
A12: 再融资一般债券发行额(包含特殊再融资) | B12: 20.75
A13: 新增专项债券发行额 | B13: 19.62
A14: 再融资专项债券发行额(包含特殊再融资) | B14: 10.48
A15: 四、2023年地方政府债务还本数（包含再融资） | B15: =SUM(B16:B17) -> 31.68
A16: 其中：一般债务 | B16: 20.30
A17: 专项债务 | B17: 11.38
A18: 五、2023年地方政府债务付息数 | B18: =SUM(B19:B20) -> 8.63
A19: 其中：一般债务 | B19: 5.25
A20: 专项债务 | B20: 3.38
A21: 六、2023年末地方政府债务余额 | B21: =SUM(B22:B23) -> 260.14
A22: 其中：一般债务 | B22: 146.98
A23: 专项债务 | B23: 113.16
A24: 七、2023年地方政府债务限额（预计数） | B24: =SUM(B25:B26) -> 270.47
A25: 其中：一般债务 | B25: 153.48
A26: 专项债务 | B26: 116.99
A27: 八、2023年地方政府债务剩余年限（年） | B27: 8.42
A28: 其中： 一般债务年限（年） | B28: 7.35
A29: 专项债务年限（年） | B29: 9.80

Sheet 66.政府债务变动分地区
A1: 2023年攀枝花市政府债务分级变动情况表
F2: 单位：万元
A3: 地区 | B3: 2022年 年末余额 | C3: 2023年 举借情况 | D3: 2022年 或有债务转化 | E3: 2023年 当年偿还 | F3: 2023年 年末余额
A4: 市本级 | B4: 1,128,036 | C4: 184,319 | E4: 137,407 | F4: =B4+C4+D4-E4 -> 1,174,948
A5: 东 区 | B5: 188,408 | C5: 21,741 | E5: 8,741 | F5: =B5+C5+D5-E5 -> 201,408
A6: 西 区 | B6: 158,639 | C6: 41,380 | E6: 23,959 | F6: 176,060
A7: 仁和区 | B7: 388,098 | C7: 91,743 | E7: 81,987 | F7: 397,854
A8: 米易县 | B8: 282,308 | C8: 84,391 | E8: =21391+246 -> 21,637 | F8: 345,062
A9: 盐边县 | B9: 240,875 | C9: 108,253 | E9: 43,053 | F9: 306,075
A10: 合计 | B10: =SUM(B4:B9) -> 2,386,364 | C10: 531,827 | E10: 316,784 | F10: 2,601,407
A11: 说明：本表反映的举借额和偿还额均包括再融资债券（含特殊再融资债券）。

Sheet 67.全市政府债券使用情况
A1: 2023年攀枝花市政府新增债券使用情况表
G2: 单位：万元
A3: 地区 | B3: 项目名称 | C3: 项目主管部门 | D3: 项目实施单位 | E3: 发行金额 | F3: 债券性质 | G3: 投向领域
A4: 合计 | E4: =SUM(E5:E85) -> 219,500
A5: 市本级 | B5: G4216宁南至攀枝花段高速公路项目 | C5: 攀枝花市交通运输管理局 | D5: 攀枝花市高速公路建设领导小组办公室 | E5: 6,824 | F5: 一般债券 | G5: 交通基础设施
A6: 市本级 | B6: 金江镇联合、斑鸠湾水库雨水情，河心水库安全监测项目 | C6: 攀枝花市水利局 | D6: 金江镇 | E6: 22 | F6: 一般债券 | G6: 农林水利
A7: 市本级 | B7: 攀枝花市建筑工程学校“三名工程”建设项目 | C7: 攀枝花市教体局 | D7: 攀枝花市建筑工程学校 | E7: 200 | F7: 一般债券 | G7: 社会事业
A8: 市本级 | B8: 攀枝花市经贸旅游学校“三名工程”建设项目 | C8: 攀枝花市教体局 | D8: 攀枝花市经贸旅游学校 | E8: 200 | F8: 一般债券 | G8: 社会事业
A9: 市本级 | B9: 四川省区域应急救援攀枝花基地建设项目 | C9: 攀枝花市消防救援支队 | D9: 攀枝花市消防救援支队 | E9: 1,145 | F9: 一般债券 | G9: 其他
A10: 市本级 | B10: 消防车、器材装备及信息化建设项目 | C10: 攀枝花市消防救援支队 | D10: 攀枝花市消防救援支队 | E10: 600 | F10: 一般债券 | G10: 其他
A11: 市本级 | B11: 消防车采购项目 | C11: 攀枝花市森林消防支队 | D11: 攀枝花市森林消防支队 | E11: 230 | F11: 一般债券 | G11: 其他
A12: 市本级 | B12: 消防装备采购项目 | C12: 攀枝花市森林消防支队 | D12: 攀枝花市森林消防支队 | E12: 100 | F12: 一般债券 | G12: 其他
A13: 市本级 | B13: 应急管理信息化及指挥场所建设 | C13: 攀枝花市应急管理局 | D13: 攀枝花市应急管理局 | E13: 143 | F13: 一般债券 | G13: 其他
A14: 市本级 | B14: 区域妇幼保健中心建设项目 | C14: 攀枝花市卫健委 | D14: 攀枝花市妇幼保健院 | E14: 200 | F14: 一般债券 | G14: 社会事业
A15: 市本级 | B15: 搜救犬训练基地训练设施建设项目 | C15: 攀枝花市消防救援支队 | D15: 攀枝花市消防救援支队 | E15: 212 | F15: 一般债券 | G15: 其他
A16: 市本级 | B16: 攀枝花市花城新区城市停车场建设项目 | C16: 住房城乡建设厅 | D16: 攀枝花市花城投资有限责任公司 | E16: 3,790 | F16: 专项债券 | G16: 交通基础设施
A17: 市本级 | B17: 攀枝花保税物流中心（B型）项目（一期） | C17: 商务厅 | D17: 攀枝花钒钛新城投资有限公司 | E17: 9,900 | F17: 专项债券 | G17: 城乡冷链等物流基础设施
A18: 市本级 | B18: 攀枝花市应急联动中心和指挥中心项目 | C18: 攀枝花市公安局 | D18: 攀枝花市公安局 | E18: 1,847 | F18: 专项债券 | G18: 其他
A19: 市本级 | B19: 攀枝花市数据处理机房改造工程 | C19: 攀枝花市机关事务服务中心 | D19: 攀枝花市机关事务服务中心 | E19: 27 | F19: 专项债券 | G19: 其他
A20: 市本级 | B20: 攀枝花市“花城土地云”线上展示平台制作及运营等项目 | C20: 攀枝花市自然资源和规划局 | D20: 攀枝花市自然资源和规划局 | E20: 36 | F20: 专项债券 | G20: 其他
A21: 市本级 | B21: 攀枝花市广告设施建设项目 | C21: 攀枝花市城市管理行政执法局 | D21: 攀枝花市城市管理行政执法局 | E21: 2 | F21: 专项债券 | G21: 其他
A22: 市本级 | B22: 生态环境应急监测能力建设等项目 | C22: 攀枝花市生态环境局 | D22: 攀枝花市生态环境局 | E22: 437 | F22: 专项债券 | G22: 其他
A23: 市本级 | B23: 攀枝花市新雅江大桥工程等项目 | C23: 攀枝花市交通运输局 | D23: 攀枝花市交通运输局 | E23: 19 | F23: 专项债券 | G23: 其他
A24: 市本级 | B24: 花城大道老黑地至龙塘沟及连接线道路工程 | C24: 攀枝花市交通运输管理局 | D24: 攀枝花市交通运输管理局 | E24: 17,341 | F24: 专项债券 | G24: 其他
A25: 东区 | B25: 攀枝花市东区江南片区污水处理设施改造及配套管网建设工程（一期） | C25: 攀枝花市东区住房和城乡建设局 | D25: 攀枝花市东区住房和城乡建设局 | E25: 2,000 | F25: 专项债券 | G25: 城镇污水垃圾收集处理
A26: 东区 | B26: 攀枝花阿暑达片区及周边配套设施提质改造工程（一期） | C26: 攀枝花市东区住房和城乡建设局 | D26: 攀枝花市东区住房和城乡建设局 | E26: 8,000 | F26: 专项债券 | G26: 供排水
A27: 东区 | B27: 攀枝花市城市改造项目（八期） | C27: 攀枝花市东区住房和城乡建设局 | D27: 攀枝花市东区住房和城乡建设局 | E27: 950 | F27: 专项债券 | G27: 城镇老旧小区改造
A28: 东区 | B28: 攀枝花市2017年危旧房改造二期项目 | C28: 攀枝花市东区住房和城乡建设局 | D28: 攀枝花市东区住房和城乡建设局 | E28: 2,050 | F28: 专项债券 | G28: 城镇老旧小区改造
A29: 西区 | B29: 攀枝花市西区城区内涝整治工程 | C29: 攀枝花市西区住房和城乡建设局 | D29: 攀枝花市西区住房和城乡建设局 | E29: 500 | F29: 一般债券 | G29: 供排水
A30: 西区 | B30: 12中健康教室光源改造 | C30: 攀枝花市西区教育和体育局 | D30: 攀枝花市西区教育和体育局 | E30: 60 | F30: 一般债券 | G30: 其他
A31: 西区 | B31: 12中宿舍楼太阳能改造项目 | C31: 攀枝花市西区教育和体育局 | D31: 攀枝花市西区教育和体育局 | E31: 200 | F31: 一般债券 | G31: 其他
A32: 西区 | B32: 12中新建综合教学楼（高中） | C32: 攀枝花市西区教育和体育局 | D32: 攀枝花市西区教育和体育局 | E32: 2,000 | F32: 一般债券 | G32: 其他
A33: 西区 | B33: 攀枝花市西区河门口老旧小区燃气管网更新改造建设项目 | C33: 攀枝花市西区综合行政执法局 | D33: 攀枝花市西区综合行政执法局 | E33: 1,000 | F33: 专项债券 | G33: 天然气管网和储气设施
A34: 西区 | B34: 攀枝花市西区城市燃气管网更新改造建设项目 | C34: 攀枝花市西区综合行政执法局 | D34: 攀枝花市西区综合行政执法局 | E34: 1,859 | F34: 专项债券 | G34: 天然气管网和储气设施
A35: 西区 | B35: 西区攀煤三供一业改造项目第二批次清香坪片区 | C35: 攀枝花市住房和城乡建设局 | D35: 攀枝花市住房和城乡建设局 | E35: 140 | F35: 专项债券 | G35: 其他
A36: 西区 | B36: 西区攀煤三供一业改造项目（第二批次）攀煤公司太煤平矿片区等物业环境改造工程 | C36: 攀枝花市住房和城乡建设局 | D36: 攀枝花市住房和城乡建设局 | E36: 3,376 | F36: 专项债券 | G36: 其他
A37: 西区 | B37: 攀枝花格里坪化工园区基础设施建设项目 | C37: 四川攀枝花格里坪特色产业园区管理委员会 | D37: 四川攀枝花格里坪特色产业园区管理委员会 | E37: 9,075 | F37: 专项债券 | G37: 产业园区基础设施（主要支持国家级、省级产业园区基础设施）
A38: 西区 | B38: 西区新庄桥北直排口污 水治理 | C38: 攀枝花市西区格里坪人民政府 | D38: 攀枝花市西区格里坪人民政府 | E38: 213 | F38: 专项债券 | G38: 其他
A39: 西区 | B39: 攀枝花市华阳煤业有限责任公司河门口宗地收储 | C39: 攀枝花市西区土地储备中心 | D39: 攀枝花市西区土地储备中心 | E39: 310 | F39: 专项债券 | G39: 其他
A40: 西区 | B40: 云南省金沙江木材水运局 土地收储 | C40: 攀枝花市西区土地储备中心 | D40: 攀枝花市西区土地储备中心 | E40: 27 | F40: 专项债券 | G40: 其他
A41: 仁和区 | B41: 仁和区2023年度新增地方政府一般债券支持小型水库雨水情测报及安全监测设施项目 | C41: 攀枝花市仁和区水利局 | D41: 攀枝花市仁和区水利局 | E41: 596 | F41: 一般债券 | G41: 农林水利
A42: 仁和区 | B42: 大河中学校高考综合改革保障项目 | C42: 攀枝花市仁和区教育局 | D42: 四川省攀枝花市大河中学校 | E42: 2,000 | F42: 一般债券 | G42: 社会事业
A43: 仁和区 | B43: 仁和镇红旗村田园综合体项目 | C43: 攀枝花市仁和区仁和镇人民政府 | D43: 攀枝花市仁和区仁和镇人民政府 | E43: 668 | F43: 一般债券 | G43: 农林水利
A44: 仁和区 | B44: 大龙潭彝族乡混撒拉村“攀西零碳示范村”建设项目 | C44: 攀枝花市仁和区大龙潭彝族乡人民政府 | D44: 攀枝花市仁和区大龙潭彝族乡人民政府 | E44: 800 | F44: 一般债券 | G44: 农业
A45: 仁和区 | B45: 攀枝花市仁和区第一农贸市场及周边老旧小区改造项目 | C45: 攀枝花市仁和区仁和镇人民政府 | D45: 攀枝花市仁和区仁和镇人民政府 | E45: 1,000 | F45: 专项债券 | G45: 城镇老旧小区改造
A46: 仁和区 | B46: 弯庄及周边老旧小区房屋主体和相关设施改造项目 | C46: 攀枝花市仁和区仁和镇人民政府 | D46: 攀枝花市仁和区仁和镇人民政府 | E46: 1,400 | F46: 专项债券 | G46: 城镇老旧小区改造
A47: 仁和区 | B47: 攀枝花市仁和区大河中路街道原机械厂家属区老旧小区改造项目 | C47: 攀枝花市仁和区大河中路街办 | D47: 攀枝花市仁和区大河中路街办 | E47: 900 | F47: 专项债券 | G47: 城镇老旧小区改造
A48: 仁和区 | B48: 攀枝花钒钛化工园区迤资片区基础设施建设项目 | C48: 攀枝花市仁和区南山循环经济发展区管理委员会 | D48: 攀枝花市仁和区南山循环经济发展区管理委员会 | E48: 4,453 | F48: 专项债券 | G48: 产业园区基础设施
A49: 仁和区 | B49: 攀枝花市执法办案区升级改造工程 | C49: 攀枝花市公安局仁和分局 | D49: 攀枝花市公安局仁和分局 | E49: 111 | F49: 专项债券 | G49: 其他
A50: 仁和区 | B50: 南山工业园区基础设施建设项目 | C50: 攀枝花市仁和区南山循环经济发展区管理委员会 | D50: 攀枝花龙潭苴却开发有限公司 | E50: 750 | F50: 专项债券 | G50: 产业园区基础设施
A51: 仁和区 | B51: (仁和区) 攀枝花市城市建设改造项目（三期） | C51: 攀枝花市仁和区住房和城乡建设局 | D51: 攀枝花市仁和区住房和城乡建设局 | E51: 1,786 | F51: 专项债券 | G51: 其他市政建设
A52: 米易县 | B52: 米易县省级阳光城康养度假区公共体育建设项目 | C52: 米易县教育和体育局 | D52: 米易县教育和体育局 | E52: 600 | F52: 一般债券 | G52: 其他社会事业
A53: 米易县 | B53: 米易县贤家片区九年一贯制学校建设项目 | C53: 米易县教育和体育局 | D53: 米易县教育和体育局 | E53: 500 | F53: 一般债券 | G53: 其他社会事业
A54: 米易县 | B54: 消防救援消防车辆采购项目 | C54: 米易县消防救援大队 | D54: 米易县消防救援大队 | E54: 159 | F54: 一般债券 | G54: 其他
A55: 米易县 | B55: 米易县2023年度小型水库安全运行项目 | C55: 米易县水利局 | D55: 米易县水利局 | E55: 77 | F55: 一般债券 | G55: 水利
A56: 米易县 | B56: 米易西环路至G227道路工程建设项目 | C56: 米易县住房和城乡建设局 | D56: 米易县住房和城乡建设局 | E56: 764 | F56: 一般债券 | G56: 市政基础设施
A57: 米易县 | B57: 指挥中心升级改造项目 | C57: 米易县公安局 | D57: 米易县公安局 | E57: 1,000 | F57: 一般债券 | G57: 公共安全
A58: 米易县 | B58: 米易县老旧小区改造及配套基础设施建设项目 | C58: 米易县住房和城乡建设局 | D58: 米易城乡融合发展投资开发有限公司 | E58: 6,000 | F58: 专项债券 | G58: 老旧小区改造
A59: 米易县 | B59: 米易县特色产业融合示范园建设项目 | C59: 米易县农业农村局 | D59: 米易县农业农村局 | E59: 3,350 | F59: 专项债券 | G59: 农业
A60: 米易县 | B60: 米易县喜温蔬菜产业融合示范园项目 | C60: 米易县农业农村局 | D60: 米易县农业农村局 | E60: 11,000 | F60: 专项债券 | G60: 农业
A61: 米易县 | B61: 米易县人民医院综合服务能力提升项目 | C61: 米易县卫生健康局 | D61: 米易县人民医院 | E61: 1,900 | F61: 专项债券 | G61: 公共卫生设施
A62: 米易县 | B62: 米易县马鞍山水库补（充）水工程新山水库 | C62: 米易县水利局 | D62: 米易县马鞍山水利工程运行中心 | E62: 7,000 | F62: 专项债券 | G62: 水利
A63: 米易县 | B63: 攀枝花市米易县前进渠灌区建设项目 | C63: 米易县水利局 | D63: 米易县前进渠水利工程运行中心 | E63: 5,450 | F63: 专项债券 | G63: 水利
A64: 米易县 | B64: 四川米易白马工业园区基础设施项目 | C64: 四川米易白马工业园区管理委员会 | D64: 四川国融商贸有限责任公司 | E64: 9,000 | F64: 专项债券 | G64: 产业园区基础设施
A65: 米易县 | B65: 米易县新建公办幼儿园项目 | C65: 米易县教育和体育局 | D65: 米易县教育和体育局 | E65: 2,400 | F65: 专项债券 | G65: 学前教育
A66: 米易县 | B66: 米易县棚户区改造项目 | C66: 米易县住房和城乡建设局 | D66: 米易县住房和城乡建设局 | E66: 4,400 | F66: 专项债券 | G66: 棚户区改造
A67: 米易县 | B67: 米易县乡村路网项目 | C67: 米易县财政局 | D67: 四川米易白马工业投资有限公司 | E67: 11,105 | F67: 专项债券 | G67: 其他
A68: 米易县 | B68: 鱼鳞图信息技术建设项目 | C68: 米易县自然资源和规划局 | D68: 米易县自然资源和规划局 | E68: 95 | F68: 专项债券 | G68: 其他
A69: 盐边县 | B69: 盐边县消防救援大队装备采购项目 | C69: 盐边县消防救援大队 | D69: 盐边县消防救援大队 | E69: 80 | F69: 一般债券 | G69: 其他社会事业
A70: 盐边县 | B70: 盐边县消防救援大队建设项目 | C70: 盐边县消防救援大队 | D70: 盐边县消防救援大队 | E70: 612 | F70: 一般债券 | G70: 其他社会事业
A71: 盐边县 | B71: 盐边县公安局地下车库暨县应急指挥中心人防工程 | C71: 盐边县公安局 | D71: 盐边县公安局 | E71: 227 | F71: 一般债券 | G71: 其他社会事业
A72: 盐边县 | B72: 盐边县公安局业务技术用房及盐边县涉案财物集中管理中心信息化建设 | C72: 盐边县公安局 | D72: 盐边县公安局 | E72: 400 | F72: 一般债券 | G72: 其他社会事业
A73: 盐边县 | B73: 盐边县疾控中心能力提升建设项目 | C73: 盐边县卫生健康局 | D73: 盐边县卫生健康局 | E73: 100 | F73: 一般债券 | G73: 卫生健康（含应急医疗救治设施、公共卫生设施）
A74: 盐边县 | B74: 盐边县桐子林粮食储备库（新建）项目 | C74: 盐边县发展改革局 | D74: 盐边县发展改革局 | E74: 800 | F74: 一般债券 | G74: 粮食仓储物流设施
A75: 盐边县 | B75: 盐边县2023年小型水库大坝安全监测项目 | C75: 盐边县水利局 | D75: 盐边县水利局 | E75: 12 | F75: 一般债券 | G75: 水利
A76: 盐边县 | B76: 盐边县2023年小型水库雨水情测报项目 | C76: 盐边县水利局 | D76: 盐边县水利局 | E76: 104 | F76: 一般债券 | G76: 水利
A77: 盐边县 | B77: 盐边县第一初级中学校改扩建工程项目 | C77: 盐边县教育和体育局 | D77: 盐边县教育和体育局 | E77: 365 | F77: 一般债券 | G77: 其他社会事业
A78: 盐边县 | B78: S221盐边县渔门镇桑园大桥拆除重建工程 | C78: 盐边县交通运输局 | D78: 盐边县交通运输局 | E78: 800 | F78: 一般债券 | G78: 其他社会事业
A79: 盐边县 | B79: 盐边县第二人民医院建设工程项目 | C79: 盐边县卫生健康局 | D79: 盐边县卫生健康局 | E79: 5,000 | F79: 专项债券 | G79: 卫生健康（含应急医疗救治设施、公共卫生设施）
A80: 盐边县 | B80: 盐边县城镇垃圾综合处理建设项目 | C80: 县综合行政执法局 | D80: 县综合行政执法局 | E80: 2,000 | F80: 专项债券 | G80: 城镇污水垃圾收集处理
A81: 盐边县 | B81: 备选库项目-盐边站站前基础设施配套项目 | C81: 盐边县住建局 | D81: 盐边发展（集团）有限责任公司 | E81: 4,000 | F81: 专项债券 | G81: 城市停车场
A82: 盐边县 | B82: 备选库项目-盐边钒钛产业开发区钛材加工园基础设施建设项目二期工程 | C82: 盐边县钒钛产业开发区管委会 | D82: 盐边发展（集团）有限责任公司 | E82: 33,500 | F82: 专项债券 | G82: 产业园区基础设施
A83: 盐边县 | B83: 盐边县保障性租赁住房建设项目 | C83: 盐边县住建局 | D83: 盐边发展（集团）有限责任公司 | E83: 3,200 | F83: 专项债券 | G83: 保障性租赁住房
A84: 盐边县 | B84: 盐边县二滩南部片区供水工程 | C84: 盐边县水利局 | D84: 盐边县水利局 | E84: 2,000 | F84: 专项债券 | G84: 水利
A85: 盐边县 | B85: 盐边县农产品物流交易中心项目 | C85: 盐边县农业农村局 | D85: 盐边县农业农村局 | E85: 12,000 | F85: 专项债券 | G85: 城乡冷链等物流基础设施（含国家物流枢纽、农产品批发市场）

Sheet 68.全市一般债务余额
A1: 2023年攀枝花市政府一般债务余额情况表
C2: 单位：万元
A3: 项目 | B3: 政府债务 | E3: 或有债务
B4: 合计 | C4: 一般债券 | D4: 非债券 形式债务
A5: 一、2022年末余额 | B5: =SUM(C5:D5) -> 1,441,989 | C5: 1,417,623 | D5: 24,366 | E5: 139,659
A6: 二、2023年新增额 | B6: =C6+D6 -> 230,791 | C6: 230,791
A7: 三、2023年或有债务转化额
A8: 四、2023年偿还额 | B8: =SUM(C8:D8) -> 202,959 | C8: 198,749 | D8: 4,210 | E8: 453
A9: 五、2023年末余额 | B9: =B5+B6+B7-B8 -> 1,469,821 | C9: =C5+C6+C7-C8 -> 1,449,665 | D9: 20,156 | E9: 139,206
A10: 说明：本表反映的举借额和偿还额均包括再融资债券（含特殊再融资债券）。

Sheet 69.一般债务分地区
A1: 2023年攀枝花市政府一般债务分级情况表
C2: 单位：万元
A3: 地区 | B3: 债务限额 | C3: 债务余额
A4: 市本级 | B4: 760,920 | C4: 729,993
A5: 东 区 | B5: 134,407 | C5: 132,278
A6: 西 区 | B6: 135,512 | C6: 123,519
A7: 仁和区 | B7: 165,197 | C7: 155,514
A8: 米易县 | B8: 199,236 | C8: 190,782
A9: 盐边县 | B9: 139,514 | C9: 137,735
A10: 合计 | B10: =SUM(B4:B9) -> 1,534,786 | C10: =SUM(C4:C9) -> 1,469,821
A11: 说明：省上暂未批复2023年攀枝花市债务限额，此表中的债务限额为预测数。

Sheet 70.全市专项债务余额
A1: 2023年攀枝花市政府专项债务余额情况表
C2: 单位：万元
A3: 项目 | B3: 专项债务
B4: 合计 | C4: 专项债券 | D4: 非债券 形式债务
A5: 一、2022年末余额 | B5: 944,375 | C5: 944,375
A6: 二、2023年新增额 | B6: =SUM(C6:D6) -> 301,036 | C6: 301,036
A7: 三、2023年或有债务转化额
A8: 四、2023年偿还额 | B8: =SUM(C8:D8) -> 113,825 | C8: 113,825
A9: 五、2023年末余额 | B9: =B5+B6-B8 -> 1,131,586 | C9: =C5+C6-C8 -> 1,131,586
A10: 说明：本表反映的举借额和偿还额均包括再融资债券（含特殊再融资债券）。

Sheet 71.专项债务分地区
A1: 2023年攀枝花市政府专项债务分级情况表
A2: + | B2: 单位：万元
A3: 地区 | B3: 债务限额 | C3: 债务余额
A4: 市本级 | B4: 469,058 | C4: =412855+33400+11100-12400 -> 444,955
A5: 东 区 | B5: 70,288 | C5: 69,130
A6: 西 区 | B6: 54,456 | C6: 52,541
A7: 仁和区 | B7: 249,969 | C7: 242,340
A8: 米易县 | B8: 156,738 | C8: 154,280
A9: 盐边县 | B9: 169,421 | C9: 168,340
A10: 合计 | B10: =SUM(B4:B9) -> 1,169,930 | C10: =SUM(C4:C9) -> 1,131,586
A11: 说明：省上暂未批复2023年攀枝花市债务限额，此表中的债务限额为预测数。
